Workbook

Sheet Budsjettsammendrag hittil i år
A2: Faktisk versus budsjett hittil i år for 2005
A4: Hovedbokkode | B4: Kontonavn | C4: Faktisk | D4: Budsjett | E4: Gjenstående i kr | F4: Gjenstående i %
A6: 1000 | B6: Reklame | C6: ='Oversikt over månedsutgifter'!O6 -> kr 750.00 | D6: kr 100,000.00 | E6: =SUM(+D6-C6) -> kr 99,250.00 | F6: =SUM(E6/D6) -> 99.25%
A8: 2000 | B8: Kontorutstyr | C8: ='Oversikt over månedsutgifter'!O8 -> 0 | D8: kr 100,000.00 | E8: =SUM(+D8-C8) -> kr 100,000.00 | F8: =SUM(E8/D8) -> 100.00%
A10: 3000 | B10: Skrivere | C10: ='Oversikt over månedsutgifter'!O10 -> 0 | D10: kr 100,000.00 | E10: =SUM(+D10-C10) -> kr 100,000.00 | F10: =SUM(E10/D10) -> 100.00%
A12: 4000 | B12: Serverutgifter | C12: ='Oversikt over månedsutgifter'!O12 -> 0 | D12: kr 100,000.00 | E12: =SUM(+D12-C12) -> kr 100,000.00 | F12: =SUM(E12/D12) -> 100.00%
A14: 5000 | B14: Utstyr | C14: ='Oversikt over månedsutgifter'!O14 -> 0 | D14: kr 50,000.00 | E14: =SUM(+D14-C14) -> kr 50,000.00 | F14: =SUM(E14/D14) -> 100.00%
A16: 6000 | B16: Klientutgifter | C16: ='Oversikt over månedsutgifter'!O16 -> 0 | D16: kr 25,000.00 | E16: =SUM(+D16-C16) -> kr 25,000.00 | F16: =SUM(E16/D16) -> 100.00%
A18: 7000 | B18: Datamaskiner | C18: ='Oversikt over månedsutgifter'!O18 -> kr 2,500.00 | D18: kr 75,000.00 | E18: =SUM(+D18-C18) -> kr 72,500.00 | F18: =SUM(E18/D18) -> 96.67%
A20: 8000 | B20: Helseforsikring | C20: ='Oversikt over månedsutgifter'!O20 -> 0 | D20: kr 65,000.00 | E20: =SUM(+D20-C20) -> kr 65,000.00 | F20: =SUM(E20/D20) -> 100.00%
A22: 9000 | B22: Byggekostnader | C22: ='Oversikt over månedsutgifter'!O22 -> 0 | D22: kr 125,000.00 | E22: =SUM(+D22-C22) -> kr 125,000.00 | F22: =SUM(E22/D22) -> 100.00%
A24: 10000 | B24: Markedsføring | C24: ='Oversikt over månedsutgifter'!O24 -> 0 | D24: kr 100,000.00 | E24: =SUM(+D24-C24) -> kr 100,000.00 | F24: =SUM(E24/D24) -> 100.00%
A26: 11000 | B26: Veldedige formål | C26: ='Oversikt over månedsutgifter'!O26 -> kr 2,500.00 | D26: kr 250,000.00 | E26: =SUM(+D26-C26) -> kr 247,500.00 | F26: =SUM(E26/D26) -> 99.00%
A28: 12000 | B28: Sponsorutgifter | C28: ='Oversikt over månedsutgifter'!O28 -> kr 1,000.00 | D28: kr 50,000.00 | E28: =SUM(+D28-C28) -> kr 49,000.00 | F28: =SUM(E28/D28) -> 98.00%
B30: TOTALT | C30: =SUM(C6:C28) -> kr 6,750.00 | D30: =SUM(D6:D28) -> kr 1,140,000.00 | E30: =SUM(E6:E28) -> kr 1,133,250.00 | F30: =SUM(E30/D30) -> 99.41%

Sheet Oversikt over månedsutgifter
A2: Månedlige utgifter 2005
A4: Hovedbokkode | B4: Kontonavn | C4: 2005-01-01 | D4: 2005-02-01 | E4: 2005-03-01 | F4: 2005-04-01 | G4: maj/05 | H4: 2005-06-01 | I4: 2005-07-01 | J4: 2005-08-01 | K4: 2005-09-01 | L4: okt/05 | M4: 2005-11-01 | N4: 2005-12-01 | O4: 2005
A6: 1000 | B6: Reklame | C6: =SUMIF('Donasjoner og sponsorutgifter'!$L:$L,"="&($A6&TEXT(C$4,"MMM-YY")),'Donasjoner og sponsorutgifter'!$D:$D)+SUMIF('Spesifiserte utgifter'!$J:$J,"="&($A6&TEXT(C$4,"MMM-YY")),'Spesifiserte utgifter'!$E:$E) -> kr 750.00 | D6: =SUMIF('Donasjoner og sponsorutgifter'!$L:$L,"="&($A6&TEXT(D$4,"MMM-YY")),'Donasjoner og sponsorutgifter'!$D:$D)+SUMIF('Spesifiserte utgifter'!$J:$J,"="&($A6&TEXT(D$4,"MMM-YY")),'Spesifiserte utgifter'!$E:$E) -> 0 | E6: =SUMIF('Donasjoner og sponsorutgifter'!$L:$L,"="&($A6&TEXT(E$4,"MMM-YY")),'Donasjoner og sponsorutgifter'!$D:$D)+SUMIF('Spesifiserte utgifter'!$J:$J,"="&($A6&TEXT(E$4,"MMM-YY")),'Spesifiserte utgifter'!$E:$E) -> 0 | F6: =SUMIF('Donasjoner og sponsorutgifter'!$L:$L,"="&($A6&TEXT(F$4,"MMM-YY")),'Donasjoner og sponsorutgifter'!$D:$D)+SUMIF('Spesifiserte utgifter'!$J:$J,"="&($A6&TEXT(F$4,"MMM-YY")),'Spesifiserte utgifter'!$E:$E) -> 0 | G6: =SUMIF('Donasjoner og sponsorutgifter'!$L:$L,"="&($A6&TEXT(G$4,"MMM-YY")),'Donasjoner og sponsorutgifter'!$D:$D)+SUMIF('Spesifiserte utgifter'!$J:$J,"="&($A6&TEXT(G$4,"MMM-YY")),'Spesifiserte utgifter'!$E:$E) -> 0 | H6: =SUMIF('Donasjoner og sponsorutgifter'!$L:$L,"="&($A6&TEXT(H$4,"MMM-YY")),'Donasjoner og sponsorutgifter'!$D:$D)+SUMIF('Spesifiserte utgifter'!$J:$J,"="&($A6&TEXT(H$4,"MMM-YY")),'Spesifiserte utgifter'!$E:$E) -> 0 | I6: =SUMIF('Donasjoner og sponsorutgifter'!$L:$L,"="&($A6&TEXT(I$4,"MMM-YY")),'Donasjoner og sponsorutgifter'!$D:$D)+SUMIF('Spesifiserte utgifter'!$J:$J,"="&($A6&TEXT(I$4,"MMM-YY")),'Spesifiserte utgifter'!$E:$E) -> 0 | J6: =SUMIF('Donasjoner og sponsorutgifter'!$L:$L,"="&($A6&TEXT(J$4,"MMM-YY")),'Donasjoner og sponsorutgifter'!$D:$D)+SUMIF('Spesifiserte utgifter'!$J:$J,"="&($A6&TEXT(J$4,"MMM-YY")),'Spesifiserte utgifter'!$E:$E) -> 0 | K6: =SUMIF('Donasjoner og sponsorutgifter'!$L:$L,"="&($A6&TEXT(K$4,"MMM-YY")),'Donasjoner og sponsorutgifter'!$D:$D)+SUMIF('Spesifiserte utgifter'!$J:$J,"="&($A6&TEXT(K$4,"MMM-YY")),'Spesifiserte utgifter'!$E:$E) -> 0 | L6: =SUMIF('Donasjoner og sponsorutgifter'!$L:$L,"="&($A6&TEXT(L$4,"MMM-YY")),'Donasjoner og sponsorutgifter'!$D:$D)+SUMIF('Spesifiserte utgifter'!$J:$J,"="&($A6&TEXT(L$4,"MMM-YY")),'Spesifiserte utgifter'!$E:$E) -> 0 | M6: =SUMIF('Donasjoner og sponsorutgifter'!$L:$L,"="&($A6&TEXT(M$4,"MMM-YY")),'Donasjoner og sponsorutgifter'!$D:$D)+SUMIF('Spesifiserte utgifter'!$J:$J,"="&($A6&TEXT(M$4,"MMM-YY")),'Spesifiserte utgifter'!$E:$E) -> 0 | N6: =SUMIF('Donasjoner og sponsorutgifter'!$L:$L,"="&($A6&TEXT(N$4,"MMM-YY")),'Donasjoner og sponsorutgifter'!$D:$D)+SUMIF('Spesifiserte utgifter'!$J:$J,"="&($A6&TEXT(N$4,"MMM-YY")),'Spesifiserte utgifter'!$E:$E) -> 0 | O6: =SUM(C6:N6) -> kr 750.00
A8: 2000 | B8: Kontorutstyr | C8: =SUMIF('Donasjoner og sponsorutgifter'!$L:$L,"="&($A8&TEXT(C$4,"MMM-YY")),'Donasjoner og sponsorutgifter'!$D:$D)+SUMIF('Spesifiserte utgifter'!$J:$J,"="&($A8&TEXT(C$4,"MMM-YY")),'Spesifiserte utgifter'!$E:$E) -> 0 | D8: =SUMIF('Donasjoner og sponsorutgifter'!$L:$L,"="&($A8&TEXT(D$4,"MMM-YY")),'Donasjoner og sponsorutgifter'!$D:$D)+SUMIF('Spesifiserte utgifter'!$J:$J,"="&($A8&TEXT(D$4,"MMM-YY")),'Spesifiserte utgifter'!$E:$E) -> 0 | E8: =SUMIF('Donasjoner og sponsorutgifter'!$L:$L,"="&($A8&TEXT(E$4,"MMM-YY")),'Donasjoner og sponsorutgifter'!$D:$D)+SUMIF('Spesifiserte utgifter'!$J:$J,"="&($A8&TEXT(E$4,"MMM-YY")),'Spesifiserte utgifter'!$E:$E) -> 0 | F8: =SUMIF('Donasjoner og sponsorutgifter'!$L:$L,"="&($A8&TEXT(F$4,"MMM-YY")),'Donasjoner og sponsorutgifter'!$D:$D)+SUMIF('Spesifiserte utgifter'!$J:$J,"="&($A8&TEXT(F$4,"MMM-YY")),'Spesifiserte utgifter'!$E:$E) -> 0 | G8: =SUMIF('Donasjoner og sponsorutgifter'!$L:$L,"="&($A8&TEXT(G$4,"MMM-YY")),'Donasjoner og sponsorutgifter'!$D:$D)+SUMIF('Spesifiserte utgifter'!$J:$J,"="&($A8&TEXT(G$4,"MMM-YY")),'Spesifiserte utgifter'!$E:$E) -> 0 | H8: =SUMIF('Donasjoner og sponsorutgifter'!$L:$L,"="&($A8&TEXT(H$4,"MMM-YY")),'Donasjoner og sponsorutgifter'!$D:$D)+SUMIF('Spesifiserte utgifter'!$J:$J,"="&($A8&TEXT(H$4,"MMM-YY")),'Spesifiserte utgifter'!$E:$E) -> 0 | I8: =SUMIF('Donasjoner og sponsorutgifter'!$L:$L,"="&($A8&TEXT(I$4,"MMM-YY")),'Donasjoner og sponsorutgifter'!$D:$D)+SUMIF('Spesifiserte utgifter'!$J:$J,"="&($A8&TEXT(I$4,"MMM-YY")),'Spesifiserte utgifter'!$E:$E) -> 0 | J8: =SUMIF('Donasjoner og sponsorutgifter'!$L:$L,"="&($A8&TEXT(J$4,"MMM-YY")),'Donasjoner og sponsorutgifter'!$D:$D)+SUMIF('Spesifiserte utgifter'!$J:$J,"="&($A8&TEXT(J$4,"MMM-YY")),'Spesifiserte utgifter'!$E:$E) -> 0 | K8: =SUMIF('Donasjoner og sponsorutgifter'!$L:$L,"="&($A8&TEXT(K$4,"MMM-YY")),'Donasjoner og sponsorutgifter'!$D:$D)+SUMIF('Spesifiserte utgifter'!$J:$J,"="&($A8&TEXT(K$4,"MMM-YY")),'Spesifiserte utgifter'!$E:$E) -> 0 | L8: =SUMIF('Donasjoner og sponsorutgifter'!$L:$L,"="&($A8&TEXT(L$4,"MMM-YY")),'Donasjoner og sponsorutgifter'!$D:$D)+SUMIF('Spesifiserte utgifter'!$J:$J,"="&($A8&TEXT(L$4,"MMM-YY")),'Spesifiserte utgifter'!$E:$E) -> 0 | M8: =SUMIF('Donasjoner og sponsorutgifter'!$L:$L,"="&($A8&TEXT(M$4,"MMM-YY")),'Donasjoner og sponsorutgifter'!$D:$D)+SUMIF('Spesifiserte utgifter'!$J:$J,"="&($A8&TEXT(M$4,"MMM-YY")),'Spesifiserte utgifter'!$E:$E) -> 0 | N8: =SUMIF('Donasjoner og sponsorutgifter'!$L:$L,"="&($A8&TEXT(N$4,"MMM-YY")),'Donasjoner og sponsorutgifter'!$D:$D)+SUMIF('Spesifiserte utgifter'!$J:$J,"="&($A8&TEXT(N$4,"MMM-YY")),'Spesifiserte utgifter'!$E:$E) -> 0 | O8: =SUM(C8:N8) -> 0
A10: 3000 | B10: Skrivere | C10: =SUMIF('Donasjoner og sponsorutgifter'!$L:$L,"="&($A10&TEXT(C$4,"MMM-YY")),'Donasjoner og sponsorutgifter'!$D:$D)+SUMIF('Spesifiserte utgifter'!$J:$J,"="&($A10&TEXT(C$4,"MMM-YY")),'Spesifiserte utgifter'!$E:$E) -> 0 | D10: =SUMIF('Donasjoner og sponsorutgifter'!$L:$L,"="&($A10&TEXT(D$4,"MMM-YY")),'Donasjoner og sponsorutgifter'!$D:$D)+SUMIF('Spesifiserte utgifter'!$J:$J,"="&($A10&TEXT(D$4,"MMM-YY")),'Spesifiserte utgifter'!$E:$E) -> 0 | E10: =SUMIF('Donasjoner og sponsorutgifter'!$L:$L,"="&($A10&TEXT(E$4,"MMM-YY")),'Donasjoner og sponsorutgifter'!$D:$D)+SUMIF('Spesifiserte utgifter'!$J:$J,"="&($A10&TEXT(E$4,"MMM-YY")),'Spesifiserte utgifter'!$E:$E) -> 0 | F10: =SUMIF('Donasjoner og sponsorutgifter'!$L:$L,"="&($A10&TEXT(F$4,"MMM-YY")),'Donasjoner og sponsorutgifter'!$D:$D)+SUMIF('Spesifiserte utgifter'!$J:$J,"="&($A10&TEXT(F$4,"MMM-YY")),'Spesifiserte utgifter'!$E:$E) -> 0 | G10: =SUMIF('Donasjoner og sponsorutgifter'!$L:$L,"="&($A10&TEXT(G$4,"MMM-YY")),'Donasjoner og sponsorutgifter'!$D:$D)+SUMIF('Spesifiserte utgifter'!$J:$J,"="&($A10&TEXT(G$4,"MMM-YY")),'Spesifiserte utgifter'!$E:$E) -> 0 | H10: =SUMIF('Donasjoner og sponsorutgifter'!$L:$L,"="&($A10&TEXT(H$4,"MMM-YY")),'Donasjoner og sponsorutgifter'!$D:$D)+SUMIF('Spesifiserte utgifter'!$J:$J,"="&($A10&TEXT(H$4,"MMM-YY")),'Spesifiserte utgifter'!$E:$E) -> 0 | I10: =SUMIF('Donasjoner og sponsorutgifter'!$L:$L,"="&($A10&TEXT(I$4,"MMM-YY")),'Donasjoner og sponsorutgifter'!$D:$D)+SUMIF('Spesifiserte utgifter'!$J:$J,"="&($A10&TEXT(I$4,"MMM-YY")),'Spesifiserte utgifter'!$E:$E) -> 0 | J10: =SUMIF('Donasjoner og sponsorutgifter'!$L:$L,"="&($A10&TEXT(J$4,"MMM-YY")),'Donasjoner og sponsorutgifter'!$D:$D)+SUMIF('Spesifiserte utgifter'!$J:$J,"="&($A10&TEXT(J$4,"MMM-YY")),'Spesifiserte utgifter'!$E:$E) -> 0 | K10: =SUMIF('Donasjoner og sponsorutgifter'!$L:$L,"="&($A10&TEXT(K$4,"MMM-YY")),'Donasjoner og sponsorutgifter'!$D:$D)+SUMIF('Spesifiserte utgifter'!$J:$J,"="&($A10&TEXT(K$4,"MMM-YY")),'Spesifiserte utgifter'!$E:$E) -> 0 | L10: =SUMIF('Donasjoner og sponsorutgifter'!$L:$L,"="&($A10&TEXT(L$4,"MMM-YY")),'Donasjoner og sponsorutgifter'!$D:$D)+SUMIF('Spesifiserte utgifter'!$J:$J,"="&($A10&TEXT(L$4,"MMM-YY")),'Spesifiserte utgifter'!$E:$E) -> 0 | M10: =SUMIF('Donasjoner og sponsorutgifter'!$L:$L,"="&($A10&TEXT(M$4,"MMM-YY")),'Donasjoner og sponsorutgifter'!$D:$D)+SUMIF('Spesifiserte utgifter'!$J:$J,"="&($A10&TEXT(M$4,"MMM-YY")),'Spesifiserte utgifter'!$E:$E) -> 0 | N10: =SUMIF('Donasjoner og sponsorutgifter'!$L:$L,"="&($A10&TEXT(N$4,"MMM-YY")),'Donasjoner og sponsorutgifter'!$D:$D)+SUMIF('Spesifiserte utgifter'!$J:$J,"="&($A10&TEXT(N$4,"MMM-YY")),'Spesifiserte utgifter'!$E:$E) -> 0 | O10: =SUM(C10:N10) -> 0
A12: 4000 | B12: Serverutgifter | C12: =SUMIF('Donasjoner og sponsorutgifter'!$L:$L,"="&($A12&TEXT(C$4,"MMM-YY")),'Donasjoner og sponsorutgifter'!$D:$D)+SUMIF('Spesifiserte utgifter'!$J:$J,"="&($A12&TEXT(C$4,"MMM-YY")),'Spesifiserte utgifter'!$E:$E) -> 0 | D12: =SUMIF('Donasjoner og sponsorutgifter'!$L:$L,"="&($A12&TEXT(D$4,"MMM-YY")),'Donasjoner og sponsorutgifter'!$D:$D)+SUMIF('Spesifiserte utgifter'!$J:$J,"="&($A12&TEXT(D$4,"MMM-YY")),'Spesifiserte utgifter'!$E:$E) -> 0 | E12: =SUMIF('Donasjoner og sponsorutgifter'!$L:$L,"="&($A12&TEXT(E$4,"MMM-YY")),'Donasjoner og sponsorutgifter'!$D:$D)+SUMIF('Spesifiserte utgifter'!$J:$J,"="&($A12&TEXT(E$4,"MMM-YY")),'Spesifiserte utgifter'!$E:$E) -> 0 | F12: =SUMIF('Donasjoner og sponsorutgifter'!$L:$L,"="&($A12&TEXT(F$4,"MMM-YY")),'Donasjoner og sponsorutgifter'!$D:$D)+SUMIF('Spesifiserte utgifter'!$J:$J,"="&($A12&TEXT(F$4,"MMM-YY")),'Spesifiserte utgifter'!$E:$E) -> 0 | G12: =SUMIF('Donasjoner og sponsorutgifter'!$L:$L,"="&($A12&TEXT(G$4,"MMM-YY")),'Donasjoner og sponsorutgifter'!$D:$D)+SUMIF('Spesifiserte utgifter'!$J:$J,"="&($A12&TEXT(G$4,"MMM-YY")),'Spesifiserte utgifter'!$E:$E) -> 0 | H12: =SUMIF('Donasjoner og sponsorutgifter'!$L:$L,"="&($A12&TEXT(H$4,"MMM-YY")),'Donasjoner og sponsorutgifter'!$D:$D)+SUMIF('Spesifiserte utgifter'!$J:$J,"="&($A12&TEXT(H$4,"MMM-YY")),'Spesifiserte utgifter'!$E:$E) -> 0 | I12: =SUMIF('Donasjoner og sponsorutgifter'!$L:$L,"="&($A12&TEXT(I$4,"MMM-YY")),'Donasjoner og sponsorutgifter'!$D:$D)+SUMIF('Spesifiserte utgifter'!$J:$J,"="&($A12&TEXT(I$4,"MMM-YY")),'Spesifiserte utgifter'!$E:$E) -> 0 | J12: =SUMIF('Donasjoner og sponsorutgifter'!$L:$L,"="&($A12&TEXT(J$4,"MMM-YY")),'Donasjoner og sponsorutgifter'!$D:$D)+SUMIF('Spesifiserte utgifter'!$J:$J,"="&($A12&TEXT(J$4,"MMM-YY")),'Spesifiserte utgifter'!$E:$E) -> 0 | K12: =SUMIF('Donasjoner og sponsorutgifter'!$L:$L,"="&($A12&TEXT(K$4,"MMM-YY")),'Donasjoner og sponsorutgifter'!$D:$D)+SUMIF('Spesifiserte utgifter'!$J:$J,"="&($A12&TEXT(K$4,"MMM-YY")),'Spesifiserte utgifter'!$E:$E) -> 0 | L12: =SUMIF('Donasjoner og sponsorutgifter'!$L:$L,"="&($A12&TEXT(L$4,"MMM-YY")),'Donasjoner og sponsorutgifter'!$D:$D)+SUMIF('Spesifiserte utgifter'!$J:$J,"="&($A12&TEXT(L$4,"MMM-YY")),'Spesifiserte utgifter'!$E:$E) -> 0 | M12: =SUMIF('Donasjoner og sponsorutgifter'!$L:$L,"="&($A12&TEXT(M$4,"MMM-YY")),'Donasjoner og sponsorutgifter'!$D:$D)+SUMIF('Spesifiserte utgifter'!$J:$J,"="&($A12&TEXT(M$4,"MMM-YY")),'Spesifiserte utgifter'!$E:$E) -> 0 | N12: =SUMIF('Donasjoner og sponsorutgifter'!$L:$L,"="&($A12&TEXT(N$4,"MMM-YY")),'Donasjoner og sponsorutgifter'!$D:$D)+SUMIF('Spesifiserte utgifter'!$J:$J,"="&($A12&TEXT(N$4,"MMM-YY")),'Spesifiserte utgifter'!$E:$E) -> 0 | O12: =SUM(C12:N12) -> 0
A14: 5000 | B14: Utstyr | C14: =SUMIF('Donasjoner og sponsorutgifter'!$L:$L,"="&($A14&TEXT(C$4,"MMM-YY")),'Donasjoner og sponsorutgifter'!$D:$D)+SUMIF('Spesifiserte utgifter'!$J:$J,"="&($A14&TEXT(C$4,"MMM-YY")),'Spesifiserte utgifter'!$E:$E) -> 0 | D14: =SUMIF('Donasjoner og sponsorutgifter'!$L:$L,"="&($A14&TEXT(D$4,"MMM-YY")),'Donasjoner og sponsorutgifter'!$D:$D)+SUMIF('Spesifiserte utgifter'!$J:$J,"="&($A14&TEXT(D$4,"MMM-YY")),'Spesifiserte utgifter'!$E:$E) -> 0 | E14: =SUMIF('Donasjoner og sponsorutgifter'!$L:$L,"="&($A14&TEXT(E$4,"MMM-YY")),'Donasjoner og sponsorutgifter'!$D:$D)+SUMIF('Spesifiserte utgifter'!$J:$J,"="&($A14&TEXT(E$4,"MMM-YY")),'Spesifiserte utgifter'!$E:$E) -> 0 | F14: =SUMIF('Donasjoner og sponsorutgifter'!$L:$L,"="&($A14&TEXT(F$4,"MMM-YY")),'Donasjoner og sponsorutgifter'!$D:$D)+SUMIF('Spesifiserte utgifter'!$J:$J,"="&($A14&TEXT(F$4,"MMM-YY")),'Spesifiserte utgifter'!$E:$E) -> 0 | G14: =SUMIF('Donasjoner og sponsorutgifter'!$L:$L,"="&($A14&TEXT(G$4,"MMM-YY")),'Donasjoner og sponsorutgifter'!$D:$D)+SUMIF('Spesifiserte utgifter'!$J:$J,"="&($A14&TEXT(G$4,"MMM-YY")),'Spesifiserte utgifter'!$E:$E) -> 0 | H14: =SUMIF('Donasjoner og sponsorutgifter'!$L:$L,"="&($A14&TEXT(H$4,"MMM-YY")),'Donasjoner og sponsorutgifter'!$D:$D)+SUMIF('Spesifiserte utgifter'!$J:$J,"="&($A14&TEXT(H$4,"MMM-YY")),'Spesifiserte utgifter'!$E:$E) -> 0 | I14: =SUMIF('Donasjoner og sponsorutgifter'!$L:$L,"="&($A14&TEXT(I$4,"MMM-YY")),'Donasjoner og sponsorutgifter'!$D:$D)+SUMIF('Spesifiserte utgifter'!$J:$J,"="&($A14&TEXT(I$4,"MMM-YY")),'Spesifiserte utgifter'!$E:$E) -> 0 | J14: =SUMIF('Donasjoner og sponsorutgifter'!$L:$L,"="&($A14&TEXT(J$4,"MMM-YY")),'Donasjoner og sponsorutgifter'!$D:$D)+SUMIF('Spesifiserte utgifter'!$J:$J,"="&($A14&TEXT(J$4,"MMM-YY")),'Spesifiserte utgifter'!$E:$E) -> 0 | K14: =SUMIF('Donasjoner og sponsorutgifter'!$L:$L,"="&($A14&TEXT(K$4,"MMM-YY")),'Donasjoner og sponsorutgifter'!$D:$D)+SUMIF('Spesifiserte utgifter'!$J:$J,"="&($A14&TEXT(K$4,"MMM-YY")),'Spesifiserte utgifter'!$E:$E) -> 0 | L14: =SUMIF('Donasjoner og sponsorutgifter'!$L:$L,"="&($A14&TEXT(L$4,"MMM-YY")),'Donasjoner og sponsorutgifter'!$D:$D)+SUMIF('Spesifiserte utgifter'!$J:$J,"="&($A14&TEXT(L$4,"MMM-YY")),'Spesifiserte utgifter'!$E:$E) -> 0 | M14: =SUMIF('Donasjoner og sponsorutgifter'!$L:$L,"="&($A14&TEXT(M$4,"MMM-YY")),'Donasjoner og sponsorutgifter'!$D:$D)+SUMIF('Spesifiserte utgifter'!$J:$J,"="&($A14&TEXT(M$4,"MMM-YY")),'Spesifiserte utgifter'!$E:$E) -> 0 | N14: =SUMIF('Donasjoner og sponsorutgifter'!$L:$L,"="&($A14&TEXT(N$4,"MMM-YY")),'Donasjoner og sponsorutgifter'!$D:$D)+SUMIF('Spesifiserte utgifter'!$J:$J,"="&($A14&TEXT(N$4,"MMM-YY")),'Spesifiserte utgifter'!$E:$E) -> 0 | O14: =SUM(C14:N14) -> 0
A16: 6000 | B16: Klientutgifter | C16: =SUMIF('Donasjoner og sponsorutgifter'!$L:$L,"="&($A16&TEXT(C$4,"MMM-YY")),'Donasjoner og sponsorutgifter'!$D:$D)+SUMIF('Spesifiserte utgifter'!$J:$J,"="&($A16&TEXT(C$4,"MMM-YY")),'Spesifiserte utgifter'!$E:$E) -> 0 | D16: =SUMIF('Donasjoner og sponsorutgifter'!$L:$L,"="&($A16&TEXT(D$4,"MMM-YY")),'Donasjoner og sponsorutgifter'!$D:$D)+SUMIF('Spesifiserte utgifter'!$J:$J,"="&($A16&TEXT(D$4,"MMM-YY")),'Spesifiserte utgifter'!$E:$E) -> 0 | E16: =SUMIF('Donasjoner og sponsorutgifter'!$L:$L,"="&($A16&TEXT(E$4,"MMM-YY")),'Donasjoner og sponsorutgifter'!$D:$D)+SUMIF('Spesifiserte utgifter'!$J:$J,"="&($A16&TEXT(E$4,"MMM-YY")),'Spesifiserte utgifter'!$E:$E) -> 0 | F16: =SUMIF('Donasjoner og sponsorutgifter'!$L:$L,"="&($A16&TEXT(F$4,"MMM-YY")),'Donasjoner og sponsorutgifter'!$D:$D)+SUMIF('Spesifiserte utgifter'!$J:$J,"="&($A16&TEXT(F$4,"MMM-YY")),'Spesifiserte utgifter'!$E:$E) -> 0 | G16: =SUMIF('Donasjoner og sponsorutgifter'!$L:$L,"="&($A16&TEXT(G$4,"MMM-YY")),'Donasjoner og sponsorutgifter'!$D:$D)+SUMIF('Spesifiserte utgifter'!$J:$J,"="&($A16&TEXT(G$4,"MMM-YY")),'Spesifiserte utgifter'!$E:$E) -> 0 | H16: =SUMIF('Donasjoner og sponsorutgifter'!$L:$L,"="&($A16&TEXT(H$4,"MMM-YY")),'Donasjoner og sponsorutgifter'!$D:$D)+SUMIF('Spesifiserte utgifter'!$J:$J,"="&($A16&TEXT(H$4,"MMM-YY")),'Spesifiserte utgifter'!$E:$E) -> 0 | I16: =SUMIF('Donasjoner og sponsorutgifter'!$L:$L,"="&($A16&TEXT(I$4,"MMM-YY")),'Donasjoner og sponsorutgifter'!$D:$D)+SUMIF('Spesifiserte utgifter'!$J:$J,"="&($A16&TEXT(I$4,"MMM-YY")),'Spesifiserte utgifter'!$E:$E) -> 0 | J16: =SUMIF('Donasjoner og sponsorutgifter'!$L:$L,"="&($A16&TEXT(J$4,"MMM-YY")),'Donasjoner og sponsorutgifter'!$D:$D)+SUMIF('Spesifiserte utgifter'!$J:$J,"="&($A16&TEXT(J$4,"MMM-YY")),'Spesifiserte utgifter'!$E:$E) -> 0 | K16: =SUMIF('Donasjoner og sponsorutgifter'!$L:$L,"="&($A16&TEXT(K$4,"MMM-YY")),'Donasjoner og sponsorutgifter'!$D:$D)+SUMIF('Spesifiserte utgifter'!$J:$J,"="&($A16&TEXT(K$4,"MMM-YY")),'Spesifiserte utgifter'!$E:$E) -> 0 | L16: =SUMIF('Donasjoner og sponsorutgifter'!$L:$L,"="&($A16&TEXT(L$4,"MMM-YY")),'Donasjoner og sponsorutgifter'!$D:$D)+SUMIF('Spesifiserte utgifter'!$J:$J,"="&($A16&TEXT(L$4,"MMM-YY")),'Spesifiserte utgifter'!$E:$E) -> 0 | M16: =SUMIF('Donasjoner og sponsorutgifter'!$L:$L,"="&($A16&TEXT(M$4,"MMM-YY")),'Donasjoner og sponsorutgifter'!$D:$D)+SUMIF('Spesifiserte utgifter'!$J:$J,"="&($A16&TEXT(M$4,"MMM-YY")),'Spesifiserte utgifter'!$E:$E) -> 0 | N16: =SUMIF('Donasjoner og sponsorutgifter'!$L:$L,"="&($A16&TEXT(N$4,"MMM-YY")),'Donasjoner og sponsorutgifter'!$D:$D)+SUMIF('Spesifiserte utgifter'!$J:$J,"="&($A16&TEXT(N$4,"MMM-YY")),'Spesifiserte utgifter'!$E:$E) -> 0 | O16: =SUM(C16:N16) -> 0
A18: 7000 | B18: Datamaskiner | C18: =SUMIF('Donasjoner og sponsorutgifter'!$L:$L,"="&($A18&TEXT(C$4,"MMM-YY")),'Donasjoner og sponsorutgifter'!$D:$D)+SUMIF('Spesifiserte utgifter'!$J:$J,"="&($A18&TEXT(C$4,"MMM-YY")),'Spesifiserte utgifter'!$E:$E) -> kr 2,500.00 | D18: =SUMIF('Donasjoner og sponsorutgifter'!$L:$L,"="&($A18&TEXT(D$4,"MMM-YY")),'Donasjoner og sponsorutgifter'!$D:$D)+SUMIF('Spesifiserte utgifter'!$J:$J,"="&($A18&TEXT(D$4,"MMM-YY")),'Spesifiserte utgifter'!$E:$E) -> 0 | E18: =SUMIF('Donasjoner og sponsorutgifter'!$L:$L,"="&($A18&TEXT(E$4,"MMM-YY")),'Donasjoner og sponsorutgifter'!$D:$D)+SUMIF('Spesifiserte utgifter'!$J:$J,"="&($A18&TEXT(E$4,"MMM-YY")),'Spesifiserte utgifter'!$E:$E) -> 0 | F18: =SUMIF('Donasjoner og sponsorutgifter'!$L:$L,"="&($A18&TEXT(F$4,"MMM-YY")),'Donasjoner og sponsorutgifter'!$D:$D)+SUMIF('Spesifiserte utgifter'!$J:$J,"="&($A18&TEXT(F$4,"MMM-YY")),'Spesifiserte utgifter'!$E:$E) -> 0 | G18: =SUMIF('Donasjoner og sponsorutgifter'!$L:$L,"="&($A18&TEXT(G$4,"MMM-YY")),'Donasjoner og sponsorutgifter'!$D:$D)+SUMIF('Spesifiserte utgifter'!$J:$J,"="&($A18&TEXT(G$4,"MMM-YY")),'Spesifiserte utgifter'!$E:$E) -> 0 | H18: =SUMIF('Donasjoner og sponsorutgifter'!$L:$L,"="&($A18&TEXT(H$4,"MMM-YY")),'Donasjoner og sponsorutgifter'!$D:$D)+SUMIF('Spesifiserte utgifter'!$J:$J,"="&($A18&TEXT(H$4,"MMM-YY")),'Spesifiserte utgifter'!$E:$E) -> 0 | I18: =SUMIF('Donasjoner og sponsorutgifter'!$L:$L,"="&($A18&TEXT(I$4,"MMM-YY")),'Donasjoner og sponsorutgifter'!$D:$D)+SUMIF('Spesifiserte utgifter'!$J:$J,"="&($A18&TEXT(I$4,"MMM-YY")),'Spesifiserte utgifter'!$E:$E) -> 0 | J18: =SUMIF('Donasjoner og sponsorutgifter'!$L:$L,"="&($A18&TEXT(J$4,"MMM-YY")),'Donasjoner og sponsorutgifter'!$D:$D)+SUMIF('Spesifiserte utgifter'!$J:$J,"="&($A18&TEXT(J$4,"MMM-YY")),'Spesifiserte utgifter'!$E:$E) -> 0 | K18: =SUMIF('Donasjoner og sponsorutgifter'!$L:$L,"="&($A18&TEXT(K$4,"MMM-YY")),'Donasjoner og sponsorutgifter'!$D:$D)+SUMIF('Spesifiserte utgifter'!$J:$J,"="&($A18&TEXT(K$4,"MMM-YY")),'Spesifiserte utgifter'!$E:$E) -> 0 | L18: =SUMIF('Donasjoner og sponsorutgifter'!$L:$L,"="&($A18&TEXT(L$4,"MMM-YY")),'Donasjoner og sponsorutgifter'!$D:$D)+SUMIF('Spesifiserte utgifter'!$J:$J,"="&($A18&TEXT(L$4,"MMM-YY")),'Spesifiserte utgifter'!$E:$E) -> 0 | M18: =SUMIF('Donasjoner og sponsorutgifter'!$L:$L,"="&($A18&TEXT(M$4,"MMM-YY")),'Donasjoner og sponsorutgifter'!$D:$D)+SUMIF('Spesifiserte utgifter'!$J:$J,"="&($A18&TEXT(M$4,"MMM-YY")),'Spesifiserte utgifter'!$E:$E) -> 0 | N18: =SUMIF('Donasjoner og sponsorutgifter'!$L:$L,"="&($A18&TEXT(N$4,"MMM-YY")),'Donasjoner og sponsorutgifter'!$D:$D)+SUMIF('Spesifiserte utgifter'!$J:$J,"="&($A18&TEXT(N$4,"MMM-YY")),'Spesifiserte utgifter'!$E:$E) -> 0 | O18: =SUM(C18:N18) -> kr 2,500.00
A20: 8000 | B20: Helseplan | C20: =SUMIF('Donasjoner og sponsorutgifter'!$L:$L,"="&($A20&TEXT(C$4,"MMM-YY")),'Donasjoner og sponsorutgifter'!$D:$D)+SUMIF('Spesifiserte utgifter'!$J:$J,"="&($A20&TEXT(C$4,"MMM-YY")),'Spesifiserte utgifter'!$E:$E) -> 0 | D20: =SUMIF('Donasjoner og sponsorutgifter'!$L:$L,"="&($A20&TEXT(D$4,"MMM-YY")),'Donasjoner og sponsorutgifter'!$D:$D)+SUMIF('Spesifiserte utgifter'!$J:$J,"="&($A20&TEXT(D$4,"MMM-YY")),'Spesifiserte utgifter'!$E:$E) -> 0 | E20: =SUMIF('Donasjoner og sponsorutgifter'!$L:$L,"="&($A20&TEXT(E$4,"MMM-YY")),'Donasjoner og sponsorutgifter'!$D:$D)+SUMIF('Spesifiserte utgifter'!$J:$J,"="&($A20&TEXT(E$4,"MMM-YY")),'Spesifiserte utgifter'!$E:$E) -> 0 | F20: =SUMIF('Donasjoner og sponsorutgifter'!$L:$L,"="&($A20&TEXT(F$4,"MMM-YY")),'Donasjoner og sponsorutgifter'!$D:$D)+SUMIF('Spesifiserte utgifter'!$J:$J,"="&($A20&TEXT(F$4,"MMM-YY")),'Spesifiserte utgifter'!$E:$E) -> 0 | G20: =SUMIF('Donasjoner og sponsorutgifter'!$L:$L,"="&($A20&TEXT(G$4,"MMM-YY")),'Donasjoner og sponsorutgifter'!$D:$D)+SUMIF('Spesifiserte utgifter'!$J:$J,"="&($A20&TEXT(G$4,"MMM-YY")),'Spesifiserte utgifter'!$E:$E) -> 0 | H20: =SUMIF('Donasjoner og sponsorutgifter'!$L:$L,"="&($A20&TEXT(H$4,"MMM-YY")),'Donasjoner og sponsorutgifter'!$D:$D)+SUMIF('Spesifiserte utgifter'!$J:$J,"="&($A20&TEXT(H$4,"MMM-YY")),'Spesifiserte utgifter'!$E:$E) -> 0 | I20: =SUMIF('Donasjoner og sponsorutgifter'!$L:$L,"="&($A20&TEXT(I$4,"MMM-YY")),'Donasjoner og sponsorutgifter'!$D:$D)+SUMIF('Spesifiserte utgifter'!$J:$J,"="&($A20&TEXT(I$4,"MMM-YY")),'Spesifiserte utgifter'!$E:$E) -> 0 | J20: =SUMIF('Donasjoner og sponsorutgifter'!$L:$L,"="&($A20&TEXT(J$4,"MMM-YY")),'Donasjoner og sponsorutgifter'!$D:$D)+SUMIF('Spesifiserte utgifter'!$J:$J,"="&($A20&TEXT(J$4,"MMM-YY")),'Spesifiserte utgifter'!$E:$E) -> 0 | K20: =SUMIF('Donasjoner og sponsorutgifter'!$L:$L,"="&($A20&TEXT(K$4,"MMM-YY")),'Donasjoner og sponsorutgifter'!$D:$D)+SUMIF('Spesifiserte utgifter'!$J:$J,"="&($A20&TEXT(K$4,"MMM-YY")),'Spesifiserte utgifter'!$E:$E) -> 0 | L20: =SUMIF('Donasjoner og sponsorutgifter'!$L:$L,"="&($A20&TEXT(L$4,"MMM-YY")),'Donasjoner og sponsorutgifter'!$D:$D)+SUMIF('Spesifiserte utgifter'!$J:$J,"="&($A20&TEXT(L$4,"MMM-YY")),'Spesifiserte utgifter'!$E:$E) -> 0 | M20: =SUMIF('Donasjoner og sponsorutgifter'!$L:$L,"="&($A20&TEXT(M$4,"MMM-YY")),'Donasjoner og sponsorutgifter'!$D:$D)+SUMIF('Spesifiserte utgifter'!$J:$J,"="&($A20&TEXT(M$4,"MMM-YY")),'Spesifiserte utgifter'!$E:$E) -> 0 | N20: =SUMIF('Donasjoner og sponsorutgifter'!$L:$L,"="&($A20&TEXT(N$4,"MMM-YY")),'Donasjoner og sponsorutgifter'!$D:$D)+SUMIF('Spesifiserte utgifter'!$J:$J,"="&($A20&TEXT(N$4,"MMM-YY")),'Spesifiserte utgifter'!$E:$E) -> 0 | O20: =SUM(C20:N20) -> 0
A22: 9000 | B22: Byggekostnader | C22: =SUMIF('Donasjoner og sponsorutgifter'!$L:$L,"="&($A22&TEXT(C$4,"MMM-YY")),'Donasjoner og sponsorutgifter'!$D:$D)+SUMIF('Spesifiserte utgifter'!$J:$J,"="&($A22&TEXT(C$4,"MMM-YY")),'Spesifiserte utgifter'!$E:$E) -> 0 | D22: =SUMIF('Donasjoner og sponsorutgifter'!$L:$L,"="&($A22&TEXT(D$4,"MMM-YY")),'Donasjoner og sponsorutgifter'!$D:$D)+SUMIF('Spesifiserte utgifter'!$J:$J,"="&($A22&TEXT(D$4,"MMM-YY")),'Spesifiserte utgifter'!$E:$E) -> 0 | E22: =SUMIF('Donasjoner og sponsorutgifter'!$L:$L,"="&($A22&TEXT(E$4,"MMM-YY")),'Donasjoner og sponsorutgifter'!$D:$D)+SUMIF('Spesifiserte utgifter'!$J:$J,"="&($A22&TEXT(E$4,"MMM-YY")),'Spesifiserte utgifter'!$E:$E) -> 0 | F22: =SUMIF('Donasjoner og sponsorutgifter'!$L:$L,"="&($A22&TEXT(F$4,"MMM-YY")),'Donasjoner og sponsorutgifter'!$D:$D)+SUMIF('Spesifiserte utgifter'!$J:$J,"="&($A22&TEXT(F$4,"MMM-YY")),'Spesifiserte utgifter'!$E:$E) -> 0 | G22: =SUMIF('Donasjoner og sponsorutgifter'!$L:$L,"="&($A22&TEXT(G$4,"MMM-YY")),'Donasjoner og sponsorutgifter'!$D:$D)+SUMIF('Spesifiserte utgifter'!$J:$J,"="&($A22&TEXT(G$4,"MMM-YY")),'Spesifiserte utgifter'!$E:$E) -> 0 | H22: =SUMIF('Donasjoner og sponsorutgifter'!$L:$L,"="&($A22&TEXT(H$4,"MMM-YY")),'Donasjoner og sponsorutgifter'!$D:$D)+SUMIF('Spesifiserte utgifter'!$J:$J,"="&($A22&TEXT(H$4,"MMM-YY")),'Spesifiserte utgifter'!$E:$E) -> 0 | I22: =SUMIF('Donasjoner og sponsorutgifter'!$L:$L,"="&($A22&TEXT(I$4,"MMM-YY")),'Donasjoner og sponsorutgifter'!$D:$D)+SUMIF('Spesifiserte utgifter'!$J:$J,"="&($A22&TEXT(I$4,"MMM-YY")),'Spesifiserte utgifter'!$E:$E) -> 0 | J22: =SUMIF('Donasjoner og sponsorutgifter'!$L:$L,"="&($A22&TEXT(J$4,"MMM-YY")),'Donasjoner og sponsorutgifter'!$D:$D)+SUMIF('Spesifiserte utgifter'!$J:$J,"="&($A22&TEXT(J$4,"MMM-YY")),'Spesifiserte utgifter'!$E:$E) -> 0 | K22: =SUMIF('Donasjoner og sponsorutgifter'!$L:$L,"="&($A22&TEXT(K$4,"MMM-YY")),'Donasjoner og sponsorutgifter'!$D:$D)+SUMIF('Spesifiserte utgifter'!$J:$J,"="&($A22&TEXT(K$4,"MMM-YY")),'Spesifiserte utgifter'!$E:$E) -> 0 | L22: =SUMIF('Donasjoner og sponsorutgifter'!$L:$L,"="&($A22&TEXT(L$4,"MMM-YY")),'Donasjoner og sponsorutgifter'!$D:$D)+SUMIF('Spesifiserte utgifter'!$J:$J,"="&($A22&TEXT(L$4,"MMM-YY")),'Spesifiserte utgifter'!$E:$E) -> 0 | M22: =SUMIF('Donasjoner og sponsorutgifter'!$L:$L,"="&($A22&TEXT(M$4,"MMM-YY")),'Donasjoner og sponsorutgifter'!$D:$D)+SUMIF('Spesifiserte utgifter'!$J:$J,"="&($A22&TEXT(M$4,"MMM-YY")),'Spesifiserte utgifter'!$E:$E) -> 0 | N22: =SUMIF('Donasjoner og sponsorutgifter'!$L:$L,"="&($A22&TEXT(N$4,"MMM-YY")),'Donasjoner og sponsorutgifter'!$D:$D)+SUMIF('Spesifiserte utgifter'!$J:$J,"="&($A22&TEXT(N$4,"MMM-YY")),'Spesifiserte utgifter'!$E:$E) -> 0 | O22: =SUM(C22:N22) -> 0
A24: 10000 | B24: Markedsføring | C24: =SUMIF('Donasjoner og sponsorutgifter'!$L:$L,"="&($A24&TEXT(C$4,"MMM-YY")),'Donasjoner og sponsorutgifter'!$D:$D)+SUMIF('Spesifiserte utgifter'!$J:$J,"="&($A24&TEXT(C$4,"MMM-YY")),'Spesifiserte utgifter'!$E:$E) -> 0 | D24: =SUMIF('Donasjoner og sponsorutgifter'!$L:$L,"="&($A24&TEXT(D$4,"MMM-YY")),'Donasjoner og sponsorutgifter'!$D:$D)+SUMIF('Spesifiserte utgifter'!$J:$J,"="&($A24&TEXT(D$4,"MMM-YY")),'Spesifiserte utgifter'!$E:$E) -> 0 | E24: =SUMIF('Donasjoner og sponsorutgifter'!$L:$L,"="&($A24&TEXT(E$4,"MMM-YY")),'Donasjoner og sponsorutgifter'!$D:$D)+SUMIF('Spesifiserte utgifter'!$J:$J,"="&($A24&TEXT(E$4,"MMM-YY")),'Spesifiserte utgifter'!$E:$E) -> 0 | F24: =SUMIF('Donasjoner og sponsorutgifter'!$L:$L,"="&($A24&TEXT(F$4,"MMM-YY")),'Donasjoner og sponsorutgifter'!$D:$D)+SUMIF('Spesifiserte utgifter'!$J:$J,"="&($A24&TEXT(F$4,"MMM-YY")),'Spesifiserte utgifter'!$E:$E) -> 0 | G24: =SUMIF('Donasjoner og sponsorutgifter'!$L:$L,"="&($A24&TEXT(G$4,"MMM-YY")),'Donasjoner og sponsorutgifter'!$D:$D)+SUMIF('Spesifiserte utgifter'!$J:$J,"="&($A24&TEXT(G$4,"MMM-YY")),'Spesifiserte utgifter'!$E:$E) -> 0 | H24: =SUMIF('Donasjoner og sponsorutgifter'!$L:$L,"="&($A24&TEXT(H$4,"MMM-YY")),'Donasjoner og sponsorutgifter'!$D:$D)+SUMIF('Spesifiserte utgifter'!$J:$J,"="&($A24&TEXT(H$4,"MMM-YY")),'Spesifiserte utgifter'!$E:$E) -> 0 | I24: =SUMIF('Donasjoner og sponsorutgifter'!$L:$L,"="&($A24&TEXT(I$4,"MMM-YY")),'Donasjoner og sponsorutgifter'!$D:$D)+SUMIF('Spesifiserte utgifter'!$J:$J,"="&($A24&TEXT(I$4,"MMM-YY")),'Spesifiserte utgifter'!$E:$E) -> 0 | J24: =SUMIF('Donasjoner og sponsorutgifter'!$L:$L,"="&($A24&TEXT(J$4,"MMM-YY")),'Donasjoner og sponsorutgifter'!$D:$D)+SUMIF('Spesifiserte utgifter'!$J:$J,"="&($A24&TEXT(J$4,"MMM-YY")),'Spesifiserte utgifter'!$E:$E) -> 0 | K24: =SUMIF('Donasjoner og sponsorutgifter'!$L:$L,"="&($A24&TEXT(K$4,"MMM-YY")),'Donasjoner og sponsorutgifter'!$D:$D)+SUMIF('Spesifiserte utgifter'!$J:$J,"="&($A24&TEXT(K$4,"MMM-YY")),'Spesifiserte utgifter'!$E:$E) -> 0 | L24: =SUMIF('Donasjoner og sponsorutgifter'!$L:$L,"="&($A24&TEXT(L$4,"MMM-YY")),'Donasjoner og sponsorutgifter'!$D:$D)+SUMIF('Spesifiserte utgifter'!$J:$J,"="&($A24&TEXT(L$4,"MMM-YY")),'Spesifiserte utgifter'!$E:$E) -> 0 | M24: =SUMIF('Donasjoner og sponsorutgifter'!$L:$L,"="&($A24&TEXT(M$4,"MMM-YY")),'Donasjoner og sponsorutgifter'!$D:$D)+SUMIF('Spesifiserte utgifter'!$J:$J,"="&($A24&TEXT(M$4,"MMM-YY")),'Spesifiserte utgifter'!$E:$E) -> 0 | N24: =SUMIF('Donasjoner og sponsorutgifter'!$L:$L,"="&($A24&TEXT(N$4,"MMM-YY")),'Donasjoner og sponsorutgifter'!$D:$D)+SUMIF('Spesifiserte utgifter'!$J:$J,"="&($A24&TEXT(N$4,"MMM-YY")),'Spesifiserte utgifter'!$E:$E) -> 0 | O24: =SUM(C24:N24) -> 0
A26: 11000 | B26: Veldedige formål | C26: =SUMIF('Donasjoner og sponsorutgifter'!$L:$L,"="&($A26&TEXT(C$4,"MMM-YY")),'Donasjoner og sponsorutgifter'!$D:$D)+SUMIF('Spesifiserte utgifter'!$J:$J,"="&($A26&TEXT(C$4,"MMM-YY")),'Spesifiserte utgifter'!$E:$E) -> 0 | D26: =SUMIF('Donasjoner og sponsorutgifter'!$L:$L,"="&($A26&TEXT(D$4,"MMM-YY")),'Donasjoner og sponsorutgifter'!$D:$D)+SUMIF('Spesifiserte utgifter'!$J:$J,"="&($A26&TEXT(D$4,"MMM-YY")),'Spesifiserte utgifter'!$E:$E) -> kr 2,500.00 | E26: =SUMIF('Donasjoner og sponsorutgifter'!$L:$L,"="&($A26&TEXT(E$4,"MMM-YY")),'Donasjoner og sponsorutgifter'!$D:$D)+SUMIF('Spesifiserte utgifter'!$J:$J,"="&($A26&TEXT(E$4,"MMM-YY")),'Spesifiserte utgifter'!$E:$E) -> 0 | F26: =SUMIF('Donasjoner og sponsorutgifter'!$L:$L,"="&($A26&TEXT(F$4,"MMM-YY")),'Donasjoner og sponsorutgifter'!$D:$D)+SUMIF('Spesifiserte utgifter'!$J:$J,"="&($A26&TEXT(F$4,"MMM-YY")),'Spesifiserte utgifter'!$E:$E) -> 0 | G26: =SUMIF('Donasjoner og sponsorutgifter'!$L:$L,"="&($A26&TEXT(G$4,"MMM-YY")),'Donasjoner og sponsorutgifter'!$D:$D)+SUMIF('Spesifiserte utgifter'!$J:$J,"="&($A26&TEXT(G$4,"MMM-YY")),'Spesifiserte utgifter'!$E:$E) -> 0 | H26: =SUMIF('Donasjoner og sponsorutgifter'!$L:$L,"="&($A26&TEXT(H$4,"MMM-YY")),'Donasjoner og sponsorutgifter'!$D:$D)+SUMIF('Spesifiserte utgifter'!$J:$J,"="&($A26&TEXT(H$4,"MMM-YY")),'Spesifiserte utgifter'!$E:$E) -> 0 | I26: =SUMIF('Donasjoner og sponsorutgifter'!$L:$L,"="&($A26&TEXT(I$4,"MMM-YY")),'Donasjoner og sponsorutgifter'!$D:$D)+SUMIF('Spesifiserte utgifter'!$J:$J,"="&($A26&TEXT(I$4,"MMM-YY")),'Spesifiserte utgifter'!$E:$E) -> 0 | J26: =SUMIF('Donasjoner og sponsorutgifter'!$L:$L,"="&($A26&TEXT(J$4,"MMM-YY")),'Donasjoner og sponsorutgifter'!$D:$D)+SUMIF('Spesifiserte utgifter'!$J:$J,"="&($A26&TEXT(J$4,"MMM-YY")),'Spesifiserte utgifter'!$E:$E) -> 0 | K26: =SUMIF('Donasjoner og sponsorutgifter'!$L:$L,"="&($A26&TEXT(K$4,"MMM-YY")),'Donasjoner og sponsorutgifter'!$D:$D)+SUMIF('Spesifiserte utgifter'!$J:$J,"="&($A26&TEXT(K$4,"MMM-YY")),'Spesifiserte utgifter'!$E:$E) -> 0 | L26: =SUMIF('Donasjoner og sponsorutgifter'!$L:$L,"="&($A26&TEXT(L$4,"MMM-YY")),'Donasjoner og sponsorutgifter'!$D:$D)+SUMIF('Spesifiserte utgifter'!$J:$J,"="&($A26&TEXT(L$4,"MMM-YY")),'Spesifiserte utgifter'!$E:$E) -> 0 | M26: =SUMIF('Donasjoner og sponsorutgifter'!$L:$L,"="&($A26&TEXT(M$4,"MMM-YY")),'Donasjoner og sponsorutgifter'!$D:$D)+SUMIF('Spesifiserte utgifter'!$J:$J,"="&($A26&TEXT(M$4,"MMM-YY")),'Spesifiserte utgifter'!$E:$E) -> 0 | N26: =SUMIF('Donasjoner og sponsorutgifter'!$L:$L,"="&($A26&TEXT(N$4,"MMM-YY")),'Donasjoner og sponsorutgifter'!$D:$D)+SUMIF('Spesifiserte utgifter'!$J:$J,"="&($A26&TEXT(N$4,"MMM-YY")),'Spesifiserte utgifter'!$E:$E) -> 0 | O26: =SUM(C26:N26) -> kr 2,500.00
A28: 12000 | B28: Sponsorutgifter | C28: =SUMIF('Donasjoner og sponsorutgifter'!$L:$L,"="&($A28&TEXT(C$4,"MMM-YY")),'Donasjoner og sponsorutgifter'!$D:$D)+SUMIF('Spesifiserte utgifter'!$J:$J,"="&($A28&TEXT(C$4,"MMM-YY")),'Spesifiserte utgifter'!$E:$E) -> kr 1,000.00 | D28: =SUMIF('Donasjoner og sponsorutgifter'!$L:$L,"="&($A28&TEXT(D$4,"MMM-YY")),'Donasjoner og sponsorutgifter'!$D:$D)+SUMIF('Spesifiserte utgifter'!$J:$J,"="&($A28&TEXT(D$4,"MMM-YY")),'Spesifiserte utgifter'!$E:$E) -> 0 | E28: =SUMIF('Donasjoner og sponsorutgifter'!$L:$L,"="&($A28&TEXT(E$4,"MMM-YY")),'Donasjoner og sponsorutgifter'!$D:$D)+SUMIF('Spesifiserte utgifter'!$J:$J,"="&($A28&TEXT(E$4,"MMM-YY")),'Spesifiserte utgifter'!$E:$E) -> 0 | F28: =SUMIF('Donasjoner og sponsorutgifter'!$L:$L,"="&($A28&TEXT(F$4,"MMM-YY")),'Donasjoner og sponsorutgifter'!$D:$D)+SUMIF('Spesifiserte utgifter'!$J:$J,"="&($A28&TEXT(F$4,"MMM-YY")),'Spesifiserte utgifter'!$E:$E) -> 0 | G28: =SUMIF('Donasjoner og sponsorutgifter'!$L:$L,"="&($A28&TEXT(G$4,"MMM-YY")),'Donasjoner og sponsorutgifter'!$D:$D)+SUMIF('Spesifiserte utgifter'!$J:$J,"="&($A28&TEXT(G$4,"MMM-YY")),'Spesifiserte utgifter'!$E:$E) -> 0 | H28: =SUMIF('Donasjoner og sponsorutgifter'!$L:$L,"="&($A28&TEXT(H$4,"MMM-YY")),'Donasjoner og sponsorutgifter'!$D:$D)+SUMIF('Spesifiserte utgifter'!$J:$J,"="&($A28&TEXT(H$4,"MMM-YY")),'Spesifiserte utgifter'!$E:$E) -> 0 | I28: =SUMIF('Donasjoner og sponsorutgifter'!$L:$L,"="&($A28&TEXT(I$4,"MMM-YY")),'Donasjoner og sponsorutgifter'!$D:$D)+SUMIF('Spesifiserte utgifter'!$J:$J,"="&($A28&TEXT(I$4,"MMM-YY")),'Spesifiserte utgifter'!$E:$E) -> 0 | J28: =SUMIF('Donasjoner og sponsorutgifter'!$L:$L,"="&($A28&TEXT(J$4,"MMM-YY")),'Donasjoner og sponsorutgifter'!$D:$D)+SUMIF('Spesifiserte utgifter'!$J:$J,"="&($A28&TEXT(J$4,"MMM-YY")),'Spesifiserte utgifter'!$E:$E) -> 0 | K28: =SUMIF('Donasjoner og sponsorutgifter'!$L:$L,"="&($A28&TEXT(K$4,"MMM-YY")),'Donasjoner og sponsorutgifter'!$D:$D)+SUMIF('Spesifiserte utgifter'!$J:$J,"="&($A28&TEXT(K$4,"MMM-YY")),'Spesifiserte utgifter'!$E:$E) -> 0 | L28: =SUMIF('Donasjoner og sponsorutgifter'!$L:$L,"="&($A28&TEXT(L$4,"MMM-YY")),'Donasjoner og sponsorutgifter'!$D:$D)+SUMIF('Spesifiserte utgifter'!$J:$J,"="&($A28&TEXT(L$4,"MMM-YY")),'Spesifiserte utgifter'!$E:$E) -> 0 | M28: =SUMIF('Donasjoner og sponsorutgifter'!$L:$L,"="&($A28&TEXT(M$4,"MMM-YY")),'Donasjoner og sponsorutgifter'!$D:$D)+SUMIF('Spesifiserte utgifter'!$J:$J,"="&($A28&TEXT(M$4,"MMM-YY")),'Spesifiserte utgifter'!$E:$E) -> 0 | N28: =SUMIF('Donasjoner og sponsorutgifter'!$L:$L,"="&($A28&TEXT(N$4,"MMM-YY")),'Donasjoner og sponsorutgifter'!$D:$D)+SUMIF('Spesifiserte utgifter'!$J:$J,"="&($A28&TEXT(N$4,"MMM-YY")),'Spesifiserte utgifter'!$E:$E) -> 0 | O28: =SUM(C28:N28) -> kr 1,000.00
B30: Totalt | C30: =SUM(C6:C28) -> kr 4,250.00 | D30: kr 2,500.00 | E30: 0 | F30: 0 | G30: 0 | H30: 0 | I30: 0 | J30: 0 | K30: 0 | L30: 0 | M30: 0 | N30: 0 | O30: kr 6,750.00

Sheet Spesifiserte utgifter
A1: Hovedbokkode | B1: Fakturadato | C1: Fakturanummer | D1: Forespurt av | E1: Sjekkbeløp | F1: Mottaker | G1: Sjekkbruk | H1: Distribusjonsmetode | I1: Registreringsdato | J1: Opprettet nøkkelfelt
A2: 1000 | B2: 2005-01-01 | C2: 100 | D2: Andy Teal | E2: kr 750.00 | F2: Consolidated Messenger | G2: Mailer | H2: Mail | I2: 2005-01-04 | J2: =A2&TEXT(B2,"MMM-YY") -> 1000Jan-05
A3: 7000 | B3: 2005-01-15 | C3: 101 | D3: Robert Walters | E3: kr 2,500.00 | F3: A. Datum Corporation | G3: 2 datamaskiner | H3: Kreditt | I3: 2005-01-20 | J3: 7000Jan-05
J4: Jan-00
J5: Jan-00
J6: Jan-00
J7: Jan-00
J8: Jan-00
J9: Jan-00
J10: Jan-00
J11: Jan-00
J12: Jan-00
J13: Jan-00
J14: Jan-00
J15: Jan-00
J16: Jan-00
J17: Jan-00
J18: Jan-00
J19: Jan-00
J20: Jan-00
J21: Jan-00
J22: Jan-00
J23: Jan-00
J24: Jan-00
J25: Jan-00
J26: Jan-00
J27: Jan-00
J28: Jan-00
J29: Jan-00
J30: Jan-00
J31: Jan-00
J32: Jan-00
J33: Jan-00
J34: =A34&TEXT(B34,"MMM-YY") -> Jan-00
J35: Jan-00
J36: Jan-00
J37: Jan-00
J38: Jan-00
J39: Jan-00
J40: Jan-00
J41: Jan-00
J42: Jan-00
J43: Jan-00
J44: Jan-00
J45: Jan-00
J46: Jan-00
J47: Jan-00
J48: Jan-00
J49: Jan-00
J50: Jan-00
J51: Jan-00
J52: Jan-00
J53: Jan-00
J54: Jan-00
J55: Jan-00
J56: Jan-00
J57: Jan-00
J58: Jan-00
J59: Jan-00
J60: Jan-00
J61: Jan-00
J62: Jan-00
J63: Jan-00
J64: Jan-00
J65: Jan-00
J66: =A66&TEXT(B66,"MMM-YY") -> Jan-00
J67: Jan-00
J68: Jan-00
J69: Jan-00
J70: Jan-00
J71: Jan-00
J72: Jan-00
J73: Jan-00
J74: Jan-00
J75: Jan-00
J76: Jan-00
J77: Jan-00
J78: Jan-00
J79: Jan-00
J80: Jan-00
J81: Jan-00
J82: Jan-00
J83: Jan-00
J84: Jan-00
J85: Jan-00
J86: Jan-00
J87: Jan-00
J88: Jan-00
J89: Jan-00
J90: Jan-00
J91: Jan-00
J92: Jan-00
J93: Jan-00
J94: Jan-00
J95: Jan-00
J96: Jan-00
J97: Jan-00
J98: =A98&TEXT(B98,"MMM-YY") -> Jan-00
J99: Jan-00
J100: Jan-00
J101: Jan-00
J102: Jan-00
J103: Jan-00

Sheet Donasjoner og sponsorutgifter
A1: Hovedbokkode | B1: Dato for sjekkforespørsel | C1: Forespurt av | D1: Sjekkbeløp | E1: Bidrag i fjor | F1: Mottaker | G1: Brukt til | H1: Godkjent av | I1: Kategori | J1: Distribusjonsmetode | K1: Registreringsdato | L1: Opprettet nøkkelfelt
A2: 12000 | B2: 2005-01-20 | C2: Susan W. Eaton | D2: kr 1,000.00 | E2: 0 | F2: School of Fine Art | G2: Stipend | H2: Kim Ralls | I2: Kunst | J2: Sjekk | K2: 2005-01-30 | L2: =A2&TEXT(B2,"MMM-YY") -> 12000Jan-05
A3: 11000 | B3: 2005-02-15 | C3: Susan W. Eaton | D3: kr 2,500.00 | E3: 0 | F3: Wingtip Toys | G3: Veldedighet | H3: Kathie Flood | I3: Veldedighet | J3: Sjekk | K3: 2005-03-01 | L3: 11000Feb-05
L4: Jan-00
L5: Jan-00
L6: Jan-00
L7: Jan-00
L8: Jan-00
L9: Jan-00
L10: Jan-00
L11: Jan-00
L12: Jan-00
L13: Jan-00
L14: Jan-00
L15: Jan-00
L16: Jan-00
L17: Jan-00
L18: Jan-00
L19: Jan-00
L20: Jan-00
L21: Jan-00
L22: Jan-00
L23: Jan-00
L24: Jan-00
L25: Jan-00
L26: Jan-00
L27: Jan-00
L28: Jan-00
L29: Jan-00
L30: Jan-00
L31: Jan-00
L32: Jan-00
L33: Jan-00
L34: =A34&TEXT(B34,"MMM-YY") -> Jan-00
L35: Jan-00
L36: Jan-00
L37: Jan-00
L38: Jan-00
L39: Jan-00
L40: Jan-00
L41: Jan-00
L42: Jan-00
L43: Jan-00
L44: Jan-00
L45: Jan-00
L46: Jan-00
L47: Jan-00
L48: Jan-00
L49: Jan-00
L50: Jan-00
L51: Jan-00
L52: Jan-00
L53: Jan-00
L54: Jan-00
L55: Jan-00
L56: Jan-00
L57: Jan-00
L58: Jan-00
L59: Jan-00
L60: Jan-00
L61: Jan-00
L62: Jan-00
L63: Jan-00
L64: Jan-00
L65: Jan-00
L66: =A66&TEXT(B66,"MMM-YY") -> Jan-00
L67: Jan-00
L68: Jan-00
L69: Jan-00
L70: Jan-00
L71: Jan-00
L72: Jan-00
L73: Jan-00
L74: Jan-00
L75: Jan-00
L76: Jan-00
L77: Jan-00
L78: Jan-00
L79: Jan-00
L80: Jan-00
L81: Jan-00
L82: Jan-00
L83: Jan-00
L84: Jan-00
L85: Jan-00
L86: Jan-00
L87: Jan-00
L88: Jan-00
L89: Jan-00
L90: Jan-00
L91: Jan-00
L92: Jan-00
L93: Jan-00
L94: Jan-00
L95: Jan-00
L96: Jan-00
L97: Jan-00
L98: =A98&TEXT(B98,"MMM-YY") -> Jan-00
L99: Jan-00
L100: Jan-00
L101: Jan-00
L102: Jan-00
L103: Jan-00
L104: Jan-00
L105: Jan-00
L106: Jan-00
L107: Jan-00
L108: Jan-00
L109: Jan-00
